{"text_format":"3","workbook":"xlsx","n_sheets":1,"sheets":["Liste de courses"],"not_rendered":{"images":1,"defined_names":3},"read":"whole","date_system":"1900"}

{"sheet":"Liste de courses","index":0,"n_rows":31,"n_cols":8,"rows_kept":31}
[null,"Liste de courses"]
[null,"DATE"]
[null,"Terminé ?","Poste","Catégorie","Quantité","Prix","Prix total","Marque/commentaires"]
[null,null,"Oranges","Produit",null,null,{"$f":"IFERROR(SUM(ListeCourses[[#This Row],[Quantité]]*ListeCourses[[#This Row],[Prix]]), \"\")","v":{"v":0,"d":"0.00 $"}}]
[null,null,"Pommes","Produits alimentaires",null,null,{"$f":"IFERROR(SUM(ListeCourses[[#This Row],[Quantité]]*ListeCourses[[#This Row],[Prix]]), \"\")","v":{"v":0,"d":"0.00 $"}}]
[null,null,"Bananes","Produits alimentaires",null,null,{"$f":"IFERROR(SUM(ListeCourses[[#This Row],[Quantité]]*ListeCourses[[#This Row],[Prix]]), \"\")","v":{"v":0,"d":"0.00 $"}}]
[null,null,"Laitue","Produits alimentaires",null,null,{"$f":"IFERROR(SUM(ListeCourses[[#This Row],[Quantité]]*ListeCourses[[#This Row],[Prix]]), \"\")","v":{"v":0,"d":"0.00 $"}}]
[null,null,"Tomates","Produits alimentaires",null,null,{"$f":"IFERROR(SUM(ListeCourses[[#This Row],[Quantité]]*ListeCourses[[#This Row],[Prix]]), \"\")","v":{"v":0,"d":"0.00 $"}},"  "]
[null,null,"Lait ","Produits laitiers",null,null,{"$f":"IFERROR(SUM(ListeCourses[[#This Row],[Quantité]]*ListeCourses[[#This Row],[Prix]]), \"\")","v":{"v":0,"d":"0.00 $"}}]
[null,null,"Fromage","Produits laitiers",null,null,{"$f":"IFERROR(SUM(ListeCourses[[#This Row],[Quantité]]*ListeCourses[[#This Row],[Prix]]), \"\")","v":{"v":0,"d":"0.00 $"}}]
[null,null,"Œufs","Produits laitiers",null,null,{"$f":"IFERROR(SUM(ListeCourses[[#This Row],[Quantité]]*ListeCourses[[#This Row],[Prix]]), \"\")","v":{"v":0,"d":"0.00 $"}}]
[null,null,"Fromage blanc","Produits laitiers",null,null,{"$f":"IFERROR(SUM(ListeCourses[[#This Row],[Quantité]]*ListeCourses[[#This Row],[Prix]]), \"\")","v":{"v":0,"d":"0.00 $"}}]
[null,null,"Viande de bœuf","Viande",null,null,{"$f":"IFERROR(SUM(ListeCourses[[#This Row],[Quantité]]*ListeCourses[[#This Row],[Prix]]), \"\")","v":{"v":0,"d":"0.00 $"}}]
[null,null,"Volaille","Viande",null,null,{"$f":"IFERROR(SUM(ListeCourses[[#This Row],[Quantité]]*ListeCourses[[#This Row],[Prix]]), \"\")","v":{"v":0,"d":"0.00 $"}}]
[null,null,"Jambon","Viande",null,null,{"$f":"IFERROR(SUM(ListeCourses[[#This Row],[Quantité]]*ListeCourses[[#This Row],[Prix]]), \"\")","v":{"v":0,"d":"0.00 $"}}]
[null,null,"Jus","Boissons",null,null,{"$f":"IFERROR(SUM(ListeCourses[[#This Row],[Quantité]]*ListeCourses[[#This Row],[Prix]]), \"\")","v":{"v":0,"d":"0.00 $"}}]
[null,null,"Café","Boissons",null,null,{"$f":"IFERROR(SUM(ListeCourses[[#This Row],[Quantité]]*ListeCourses[[#This Row],[Prix]]), \"\")","v":{"v":0,"d":"0.00 $"}}]
[null,null,"Thé","Boissons",null,null,{"$f":"IFERROR(SUM(ListeCourses[[#This Row],[Quantité]]*ListeCourses[[#This Row],[Prix]]), \"\")","v":{"v":0,"d":"0.00 $"}}]
[null,null,"Eau","Boissons",null,null,{"$f":"IFERROR(SUM(ListeCourses[[#This Row],[Quantité]]*ListeCourses[[#This Row],[Prix]]), \"\")","v":{"v":0,"d":"0.00 $"}}]
[null,null,"Nouilles","Pâtes",null,null,{"$f":"IFERROR(SUM(ListeCourses[[#This Row],[Quantité]]*ListeCourses[[#This Row],[Prix]]), \"\")","v":{"v":0,"d":"0.00 $"}}]
[null,null,"Riz","Pâtes",null,null,{"$f":"IFERROR(SUM(ListeCourses[[#This Row],[Quantité]]*ListeCourses[[#This Row],[Prix]]), \"\")","v":{"v":0,"d":"0.00 $"}}]
[null,null,"Conserves","Soupe",null,null,{"$f":"IFERROR(SUM(ListeCourses[[#This Row],[Quantité]]*ListeCourses[[#This Row],[Prix]]), \"\")","v":{"v":0,"d":"0.00 $"}}]
[null,null,"Mélange sec","Soupe",null,null,{"$f":"IFERROR(SUM(ListeCourses[[#This Row],[Quantité]]*ListeCourses[[#This Row],[Prix]]), \"\")","v":{"v":0,"d":"0.00 $"}}]
[null,null,"Pain","Boulangerie",null,null,{"$f":"IFERROR(SUM(ListeCourses[[#This Row],[Quantité]]*ListeCourses[[#This Row],[Prix]]), \"\")","v":{"v":0,"d":"0.00 $"}}]
[null,null,"Pommes chips","Collations",null,null,{"$f":"IFERROR(SUM(ListeCourses[[#This Row],[Quantité]]*ListeCourses[[#This Row],[Prix]]), \"\")","v":{"v":0,"d":"0.00 $"}}]
[null,null,"Bretzels","Collations",null,null,{"$f":"IFERROR(SUM(ListeCourses[[#This Row],[Quantité]]*ListeCourses[[#This Row],[Prix]]), \"\")","v":{"v":0,"d":"0.00 $"}}]
[null,null,"Glace","Collations",null,null,{"$f":"IFERROR(SUM(ListeCourses[[#This Row],[Quantité]]*ListeCourses[[#This Row],[Prix]]), \"\")","v":{"v":0,"d":"0.00 $"}}]
[null,null,"Cookies","Collations",null,null,{"$f":"IFERROR(SUM(ListeCourses[[#This Row],[Quantité]]*ListeCourses[[#This Row],[Prix]]), \"\")","v":{"v":0,"d":"0.00 $"}}]
[null,null,"Assiettes en carton","Fournitures",null,null,{"$f":"IFERROR(SUM(ListeCourses[[#This Row],[Quantité]]*ListeCourses[[#This Row],[Prix]]), \"\")","v":{"v":0,"d":"0.00 $"}}]
[null,null,"Serviettes","Fournitures",null,null,{"$f":"IFERROR(SUM(ListeCourses[[#This Row],[Quantité]]*ListeCourses[[#This Row],[Prix]]), \"\")","v":{"v":0,"d":"0.00 $"}}]
[{"$nulls":6},{"$f":"SUBTOTAL(109,ListeCourses[Prix total])","v":{"v":0,"d":"0.00 $"}}]